Workbook

Sheet instrukcja
C1: Publikacje m.in. koszty publikacji, tłumaczeń specjalistycznych
C2: Zakup aparatury naukowej o waryości poniżej 10 000 zł
C3: Bezosobowy fundusz płac wraz z pochodnymi
C4: Usługi obce- usługi zlecone podmiotem zewnetrznym lub CLB np. z zkresu badań laboratoryjnych
C5: Materiały - materiały, materiały laboratoryjne, pasze, nawozy, paliwa, oleje, książki, czasopisma, księgozbiór, środki czystościowe, paliwa, oleje
C6: Odczynniki - odczynniki, trucizny, alkohole
C7: Delegacje - podróże krajowe i zagraniczne
C8: Opłaty konferencyjne oraz szkolenia- wydatki ponoszone w zwiazku z udziałem w konferencji lub szkoleniu
C9: Pozostałe - usługi naprawy, serwisowe, konserwacje, transportowe, gastronomiczne, hotelowe, usługi telekomunikacyjne, pozostałe usługi, usługi dzierżawy sprzętu oraz wszelkie nie wymienione powyżej
A12: postępowania
A13: praktyki
A14: materiały
A15: odczynniki
A16: podróże
A17: pozostałe

Sheet rejestr wydatków
K1: Typ wydatku: | L1: Suma: | O1: Wykaz dyscyplin naukowych: | P1: Suma: | Q1: Wykaz dziedzin: | R1: Suma:
D2: Rejestr faktur/dokumentów finansowych płatnych ze środków subwencji na utrzymanie i rozwój potencjału badawczego | K2: Publikacje | L2: =SUMIF($H$11:$H$47,"Publikacje",$G$11:$G$47) -> 5000 | O2: nauki leśne | P2: =SUMIF($I$11:$I$47,"nauki leśne",$G$11:$G$47) -> 0 | Q2: dziedzina nauk rolniczych | R2: =SUM(P2:P6) -> 18356.22
K3: Zakup aparatury naukowej | L3: =SUMIF($H$11:$H$47,"Zakup aparatury naukowej ",$G$11:$G$47) -> 45 | O3: rolnictwo i ogrodnictwo | P3: =SUMIF($I$11:$I$47,"rolnictwo i ogrodnictwo",$G$11:$G$47) -> 12356.22
K4: Bezosobowy fundusz płac wraz z pochodnymi | L4: =SUMIF($H$11:$H$47,"Bezosobowy fundusz płac wraz z pochodnymi",$G$11:$G$47) -> 0 | O4: technologia żywności i żywienia | P4: =SUMIF($I$11:$I$47,"technologia żywności i żywienia",$G$11:$G$47) -> 1000
K5: Usługi obce | L5: =SUMIF($H$11:$H$47,"Usługi obce",$G$11:$G$47) -> 45.22 | O5: weterynaria | P5: =SUMIF($I$11:$I$47,"weterynaria",$G$11:$G$47) -> 5000
K6: Materiały | L6: =SUMIF($H$11:$H$47,"Materiały ",$G$11:$G$47) -> 0 | O6: zootechnika i rybactwo | P6: =SUMIF($I$11:$I$47,"zootechnika i rybactwo",$G$11:$G$47) -> 0
G7: 20000 | K7: Odczynniki | L7: =SUMIF($H$11:$H$47,"Odczynniki",$G$11:$G$47) -> 12334 | O7: architektura i urbanistyka | P7: =SUMIF($I$11:$I$47,"architektura i urbanistyka",$G$11:$G$47) -> 0 | Q7: dziedzina nauk inżynieryjno - technicznych | R7: =SUM(P7:P15) -> 0
F8: Pozostało | G8: =$G$7-$L$11 -> -98466.22 | K8: Delegacje | L8: =SUMIF($H$11:$H$47,"Delegacje",$G$11:$G$47) -> 101000 | O8: automatyka, elektronika i elektrotechnika | P8: =SUMIF($I$11:$I$47,"automatyka, elektronika…",$G$11:$G$47) -> 0
K9: Opłaty konferencyjne i szkoleniowe | L9: =SUMIF($H$11:$H$47,"Opłaty konferencyjne oraz szkolenia",$G$11:$G$47) -> 0 | O9: informatyka techniczna | P9: =SUMIF($I$11:$I$47,"informatyka techniczna",$G$11:$G$47) -> 0
B10: Lp. | C10: Nazwa firmy | D10: Numer faktury | E10: Data wystawienia | F10: Kwota netto | G10: Kwota brutto | H10: Typ wydatku | I10: Dypcyplina naukowa | K10: Pozostałe | L10: =SUMIF($H$11:$H$47,"Pozostałe ",$G$11:$G$47) -> 42 | O10: inżynieria biomedyczna | P10: =SUMIF($I$11:$I$47,"inżynieria biomedyczna",$G$11:$G$47) -> 0
B11: 1 | C11: przykład1 | D11: 33 | E11: 2019-12-01 | F11: 22.2 | G11: 12334 | H11: Odczynniki | I11: rolnictwo i ogrodnictwo | K11: Razem: | L11: =SUM($G$11:$G$47) -> 118466.22 | O11: inżynieria chemiczna | P11: =SUMIF($I$11:$I$47,"inżynieria chemiczna",$G$11:$G$47) -> 0
B12: 2 | C12: przykład2 | D12: 12 | E12: 2019-05-14 | F12: 3 | G12: 22.22 | H12: Usługi obce | I12: rolnictwo i ogrodnictwo | O12: inżynieria lądowa i transport | P12: =SUMIF($I$11:$I$47,"inżynieria lądowa i transport",$G$11:$G$47) -> 0
B13: 3 | C13: przykład3 | D13: 66 | E13: 2019-04-01 | F13: 4 | G13: 1000 | H13: Delegacje | I13: technologia żywności i żywienia | O13: inżynieria materiałowa | P13: =SUMIF($I$11:$I$47,"inżynieria materiałowa",$G$11:$G$47) -> 0
B14: 4 | C14: przykład4 | D14: 443 | E14: 2019-04-20 | F14: 45 | G14: 5000 | H14: Publikacje | I14: weterynaria | O14: inżynieria mechaniczna | P14: =SUMIF($I$11:$I$47,"inżynieria mechaniczna",$G$11:$G$47) -> 0
B15: 5 | C15: przykład5 | D15: 323 | E15: 2019-02-21 | F15: 3 | G15: 100000 | H15: Delegacje | I15: nauki o zdrowiu | O15: inżynieria środowiska, górnictwo | P15: =SUMIF($I$11:$I$47,"inżynieria środowiska, górnictwo",$G$11:$G$47) -> 0
B16: 6 | C16: przykład6 | D16: 434 | E16: 2019-03-03 | F16: 54 | G16: 45 | H16: Zakup aparatury naukowej | I16: sztuki plastyczne i konserwacja dzieł sztuki | O16: nauki biologiczne | P16: =SUMIF($I$11:$I$47,"nauki biologiczne",$G$11:$G$47) -> 0 | Q16: dziedzina nauk ścisłych i przyrodniczych | R16: =SUM(P16:P20) -> 0
B17: 7 | C17: przykład7 | G17: 23 | H17: Usługi obce | I17: nauki socjologiczne | O17: nauki chemiczne | P17: =SUMIF($I$11:$I$47,"nauki chemiczne",$G$11:$G$47) -> 0
B18: 8 | C18: przykład8 | F18: 2 | G18: 20 | H18: Pozostałe | I18: nauki prawne | O18: nauki o ziemi i środowisku | P18: =SUMIF($I$11:$I$47,"nauki o ziemi i środowisku",$G$11:$G$47) -> 0
B19: 9 | C19: przykład9 | G19: 22 | H19: Pozostałe | I19: nauki socjologiczne | O19: matematyka | P19: =SUMIF($I$11:$I$47,"matematyka",$G$11:$G$47) -> 0
B20: 10 | O20: informatyka | P20: =SUMIF($I$11:$I$47,"informatyka",$G$11:$G$47) -> 0
B21: 11 | O21: ekonomia i finanse | P21: =SUMIF($I$11:$I$47,"ekonomia i finanse",$G$11:$G$47) -> 0 | Q21: dziedzina nauk społecznych | R21: =SUM(P21:P25) -> 65
B22: 12 | O22: nauki o zarządzaniu i jakości | P22: =SUMIF($I$11:$I$47,"nauki o zarządzaniu i jakości",$G$11:$G$47) -> 0
B23: 13 | O23: nauki prawne | P23: =SUMIF($I$11:$I$47,"nauki prawne",$G$11:$G$47) -> 20
B24: 14 | O24: nauki socjologiczne | P24: =SUMIF($I$11:$I$47,"nauki socjologiczne",$G$11:$G$47) -> 45
B25: 15 | O25: geografia społeczno-ekonomiczna… | P25: =SUMIF($I$11:$I$47,"geografia społeczno-ekonomiczna…",$G$11:$G$47) -> 0
B26: 16 | O26: nauki farmaceutyczne | P26: =SUMIF($I$11:$I$47,"nauki farmaceutyczne",$G$11:$G$47) -> 0 | Q26: dziedzina nauk medycznych i nauk o zdrowiu | R26: =SUM(P26:P29) -> 100000
B27: 17 | O27: nauki medyczne | P27: =SUMIF($I$11:$I$47,"nauki medyczne",$G$11:$G$47) -> 0
B28: 18 | O28: nauki o kulturze fizycznej | P28: =SUMIF($I$11:$I$47,"nauki o kulturze fizycznej",$G$11:$G$47) -> 0
B29: 19 | O29: nauki o zdrowiu | P29: =SUMIF($I$11:$I$47,"nauki o zdrowiu ",$G$11:$G$47) -> 100000
B30: 20 | O30: sztuki plastyczne i konserwacja dzieł sztuki | P30: =SUMIF($I$11:$I$47,"sztuki plastyczne i konserwacja dzieł sztuki",$G$11:$G$47) -> 45 | Q30: dziedzina sztuki | R30: =P30 -> 45
B31: 21 | O31: nauki o sztuce | P31: =SUMIF($I$11:$I$47,"nauki o sztuce",$G$11:$G$47) -> 0 | Q31: dziedzina nauk humanistycznych | R31: =P31 -> 0
B32: 22 | O32: Razem: | P32: =SUM($G$11:$G$47) -> 118466.22 | Q32: Razem: | R32: =SUM($R$1:$R$31) -> 118466.22
B33: 23
B34: 24
B35: 25
B36: 26
B37: 27
D48: Razem : | F48: =SUM(F11:F47) -> 133.2 | G48: =SUM(G11:G47) -> 118466.22

Sheet Arkusz1
B3: pozycje
B4: Publikacje
B5: Zakup aparatury naukowej
B6: Bezosobowy fundusz płac wraz z pochodnymi
B7: Usługi obce
B8: Materiały
B9: Odczynniki
B10: Delegacje
B11: Opłaty konferencyjne oraz szkolenia
B12: Pozostałe

Sheet Arkusz2
B1: dyscypliny naukowe
B2: nauki leśne
B3: rolnictwo i ogrodnictwo
B4: technologia żywności i żywienia
B5: weterynaria
B6: zootechnika i rybactwo
B7: architektura i urbanistyka
B8: automatyka, elektronika…
B9: informatyka techniczna
B10: inżynieria biomedyczna
B11: inżynieria chemiczna
B12: inżynieria lądowa i transport
B13: inżynieria materiałowa
B14: inżynieria mechaniczna
B15: inżynieria środowiska, górnictwo
B16: nauki biologiczne
B17: nauki chemiczne
B18: nauki o ziemi i środowisku
B19: matematyka
B20: informatyka
B21: ekonomia i finanse
B22: nauki o zarządzaniu i jakości
B23: nauki prawne
B24: nauki socjologiczne
B25: geografia społeczno-ekonomiczna…
B26: nauki farmaceutyczne
B27: nauki medyczne
B28: nauki o kulturze fizycznej
B29: nauki o zdrowiu
B30: sztuki plastyczne i konserwacja dzieł sztuki
B31: nauki o sztuce
B39: nauki leśne | C39: rolnictwo i ogrodnictwo | D39: technologia żywności i żywienia | E39: weterynaria | F39: zootechnika i rybactwo | G39: architektura i urbanistyka | H39: automatyka, elektronika… | I39: informatyka techniczna | J39: inżynieria biomedyczna | K39: inżynieria chemiczna | L39: inżynieria lądowa i transport | M39: inżynieria materiałowa | N39: inżynieria mechaniczna | O39: inżynieria środowiska.. górnictwo | P39: nauki biologiczne | Q39: nauki chemiczne | R39: nauki o ziemi i środowisku | S39: matematyka | T39: informatyka | U39: ekonomia i finanse | V39: nauki o zarządzaniu i jakosci | W39: nauki prawne | X39: nauki socjologiczne | Y39: geografia społeczno- ekonomiczna… | Z39: nauki farmaceutyczne | AA39: nauki medyczne | AB39: nauki o kulturze fizycznej | AC39: nauki o zdrowiu | AD39: sztuki plastyczne i onserwacja dzieł sztuki | AE39: nauki o sztuce
